lending/lending_fUSD_20250429
["ID","MTS","AMOUNT","RATE_DAILY","PERIOD"]
[359300092,1745901044745,-151.0,0.000343,7]
[359300093,1745901044754,-151.0,0.000343,7]
[359300094,1745901044763,-151.0,0.000343,7]
[359300095,1745901044772,-151.0,0.000343,7]
[359300096,1745901044782,-166.071266,0.000343,7]
[359300097,1745901044791,-296.321459,0.000343,7]
[359300098,1745901044801,-151.0,0.000343,7]
[359300099,1745901044810,-186.707806,0.000343,7]
[359300100,1745901044819,-151.0,0.000343,7]
[359300101,1745901044829,-160.538468,0.000343,7]
[359300102,1745901044838,-155.555063,0.000343,7]
[359300103,1745901044848,-155.555063,0.000343,7]
[359300104,1745901044858,-155.555063,0.000343,7]
[359300105,1745901044867,-155.555063,0.000343,7]
[359300106,1745901044877,-155.555063,0.000343,7]
[359300107,1745901044886,-155.555063,0.000343,7]
[359300108,1745901044896,-155.555063,0.000343,7]
[359300109,1745901044905,-155.555063,0.000343,7]
[359300110,1745901044915,-162.11779,0.000343,7]
[359300111,1745901044924,-151.0,0.000343,7]
[359300112,1745901044934,-252.676023,0.000343,7]
[359300113,1745901044943,-151.0,0.000343,7]
[359300114,1745901044953,-151.0,0.000343,7]
[359300115,1745901044962,-151.0,0.000343,7]
[359300116,1745901044970,-151.0,0.000343,7]
[359300117,1745901044980,-151.0,0.000343,7]
[359300118,1745901044989,-151.0,0.000343,7]
[359300119,1745901044999,-151.0,0.000343,7]
[359300120,1745901045008,-151.352203,0.000343,7]
[359300121,1745901045018,-173.134689,0.000343,7]
[359300122,1745901045027,-301.209544,0.000343,7]
[359300123,1745901045036,-301.209544,0.000343,7]
[359300124,1745901045045,-301.209544,0.000343,7]
[359300125,1745901045055,-301.209544,0.000343,7]
[359300126,1745901045064,-277.187768,0.000343,7]
[359300127,1745901045074,-277.187768,0.000343,7]
[359300128,1745901045083,-277.187768,0.000343,7]
[359300129,1745901045093,-277.187768,0.000343,7]
[359300130,1745901045102,-301.209544,0.000343,7]
[359300131,1745901045113,-301.209544,0.000343,7]
[359300132,1745901045123,-301.209544,0.000343,7]
[359300133,1745901045132,-301.209544,0.000343,7]
[359300134,1745901045141,-277.187768,0.000343,7]
[359300135,1745901045151,-277.187768,0.000343,7]
[359300136,1745901045160,-277.187768,0.000343,7]
[359300137,1745901045170,-277.187768,0.000343,7]
[359300138,1745901045179,-495.461919,0.000343,7]
[359300139,1745901045189,-495.461919,0.000343,7]
[359300140,1745901045199,-495.461919,0.000343,7]
[359300141,1745901045208,-495.461919,0.000343,7]
[359300142,1745901045217,-151.0,0.000343,7]
[359300143,1745901045227,-151.0,0.000343,7]
[359300144,1745901045237,-495.461919,0.000343,7]
[359300145,1745901045246,-495.461919,0.000343,7]
[359300146,1745901045255,-495.461919,0.000343,7]
[359300147,1745901045265,-495.461919,0.000343,7]
[359300148,1745901045275,-151.0,0.000343,7]
[359300149,1745901045285,-151.0,0.000343,7]
[359300150,1745901045294,-151.0,0.000343,7]
[359300151,1745901045305,-151.0,0.000343,7]
[359300152,1745901045314,-336.705437,0.000343,7]
[359300153,1745901045324,-336.705437,0.000343,7]
[359300154,1745901045334,-336.705437,0.000343,7]
[359300155,1745901045344,-336.705431,0.000343,7]
[359300156,1745901045354,-223.891504,0.000343,7]
[359300157,1745901045364,-910.836399,0.000343,7]
[359300158,1745901045374,-910.836399,0.000343,7]
[359300159,1745901045384,-910.836399,0.000343,7]
[359300160,1745901045393,-910.8364,0.000343,7]
[359300161,1745901045404,-288.374003,0.000343,7]
[359300162,1745901045413,-207.782597,0.000343,7]
[359300163,1745901045423,-207.782597,0.000343,7]
[359300164,1745901045432,-207.782597,0.000343,7]
[359300165,1745901045442,-207.7826,0.000343,7]
[359300166,1745901045452,-151.0,0.000343,7]
[359300167,1745901045461,-151.0,0.000343,7]
[359300168,1745901045471,-708.060156,0.000343,7]
[359300169,1745901045480,-708.060156,0.000343,7]
[359300170,1745901045489,-708.060156,0.000343,7]
[359300171,1745901045499,-708.060163,0.000343,7]
[359300172,1745901045509,-447.531349,0.000343,7]
[359300173,1745901045518,-447.531349,0.000343,7]
[359300174,1745901045527,-447.531349,0.000343,7]
[359300175,1745901045537,-447.531347,0.000343,7]
[359300176,1745901045547,-4514.41415709,0.000343,2]
[359300177,1745901045556,-151.0,0.000343,7]
[359300178,1745901045570,-151.0,0.000343,7]
[359300179,1745901045579,-1387.18884077,0.000343,2]
[359300180,1745901045589,-150.0,0.00034316,2]
[359300181,1745901045598,-150.0,0.00034345,2]
[359300182,1745901045607,-300.0,0.00034389,10]
[359300183,1745901045617,-500.0,0.00034389,10]
[359300184,1745901045626,-500.0,0.00034389,10]
[359300185,1745901045636,-500.0,0.00034389,10]
[359300186,1745901045645,-500.0,0.00034389,10]
[359300187,1745901045656,-500.0,0.00034389,10]
[359300188,1745901045667,-500.0,0.00034389,10]
[359300189,1745901045678,-296.128027,0.00034389,7]
[359300190,1745901045689,-300.0,0.00034389,10]
[359300191,1745901045699,-500.0,0.00034389,10]
[359300192,1745901045709,-500.0,0.00034389,10]
[359300193,1745901045720,-500.0,0.00034389,10]
[359300194,1745901045731,-500.0,0.00034389,10]
[359300195,1745901045743,-500.0,0.00034389,10]
[359300196,1745901045753,-500.0,0.00034389,10]
[359300197,1745901045764,-281.349076,0.0003439,7]
[359300198,1745901045774,-155.555063,0.0003439,7]
[359300199,1745901045785,-155.555063,0.0003439,7]
[359300200,1745901045795,-155.555063,0.0003439,7]
[359300201,1745901045804,-155.555063,0.0003439,7]
[359300202,1745901045813,-155.555063,0.0003439,7]
[359300203,1745901045824,-155.555063,0.0003439,7]
[359300204,1745901045835,-155.555063,0.0003439,7]
[359300205,1745901045847,-155.555063,0.0003439,7]
[359300206,1745901045856,-163.382343,0.0003439,7]
[359300207,1745901045865,-301.209544,0.0003439,7]
[359300208,1745901045875,-301.209544,0.0003439,7]
[359300209,1745901045884,-301.209544,0.0003439,7]
[359300210,1745901045894,-301.209544,0.0003439,7]
[359300211,1745901045903,-277.187768,0.0003439,7]
[359300212,1745901045913,-277.187768,0.0003439,7]
[359300213,1745901045923,-277.187768,0.0003439,7]
[359300214,1745901045933,-277.187768,0.0003439,7]
[359300215,1745901045944,-301.209544,0.0003439,7]
[359300216,1745901045953,-301.209544,0.0003439,7]
[359300217,1745901045964,-301.209544,0.0003439,7]
[359300218,1745901045974,-301.209551,0.0003439,7]
[359300219,1745901045986,-277.187768,0.0003439,7]
[359300220,1745901045997,-277.187768,0.0003439,7]
[359300221,1745901046009,-277.187768,0.0003439,7]
[359300222,1745901046019,-277.187764,0.0003439,7]
[359300223,1745901046030,-495.461919,0.0003439,7]
[359300224,1745901046041,-495.461919,0.0003439,7]
[359300225,1745901046051,-495.461919,0.0003439,7]
[359300226,1745901046061,-495.461919,0.0003439,7]
[359300227,1745901046071,-495.461919,0.0003439,7]
[359300228,1745901046082,-495.461919,0.0003439,7]
[359300229,1745901046093,-495.461919,0.0003439,7]
[359300230,1745901046103,-495.461919,0.0003439,7]
[359300231,1745901046112,-1000.0,0.00034399,2]
[359300233,1745901046121,-277.58327837,0.000344,2]
[359300235,1745901046130,-84830.29132122,0.000344,2]
[359300236,1745901046140,-151.0,0.000344,7]
[359300237,1745901046151,-152.678386,0.000344,7]
[359300238,1745901046161,-151.0,0.000344,7]
[359300239,1745901046172,-151.0,0.000344,7]
[359300241,1745901046182,-151.0,0.000344,7]
[359300243,1745901046191,-239.199071,0.000344,7]
[359300245,1745901046201,-151.0,0.000344,7]
[359300247,1745901046211,-236.083165,0.000344,7]
[359300249,1745901046221,-157.889942,0.000344,7]
[359300251,1745901046231,-157.179759,0.000344,7]
[359300253,1745901046241,-151.0,0.000344,7]
[359300255,1745901046251,-151.0,0.000344,7]
[359300257,1745901046260,-283.420355,0.000344,7]
[359300259,1745901046270,-155.555063,0.000344,7]
[359300261,1745901046280,-155.555069,0.000344,7]
[359300263,1745901046289,-495.461919,0.000344,7]
[359300267,1745901046299,-495.461919,0.000344,7]
[359300269,1745901046309,-151.0,0.000344,2]
[359300271,1745901046319,-150.0,0.00034401,2]
[359300273,1745901046329,-1355.474,0.00034412,2]
[359300275,1745901046338,-920.0,0.00034412,2]
[359300277,1745901046348,-6196.0,0.00034412,2]
[359300279,1745901046357,-833.999,0.00034412,2]
[359300281,1745901046367,-1436.377,0.00034412,2]
[359300283,1745901046376,-912.0,0.00034412,2]
[359300285,1745901046386,-2064.0,0.00034412,2]
[359300287,1745901046395,-1447.0,0.00034412,2]
[359300289,1745901046405,-548.0,0.00034412,2]
[359300291,1745901046414,-579.0,0.00034412,2]
[359300293,1745901046424,-3994.0,0.00034412,2]
[359300295,1745901046433,-745.555,0.00034412,2]
[359300297,1745901046443,-877.0,0.00034412,2]
[359300299,1745901046453,-153.0,0.00034412,2]
[359300301,1745901046462,-150.0,0.00034469,2]
[359300303,1745901046472,-150.0,0.00034469,2]
[359300305,1745901046481,-151.0,0.00034485,7]
[359300307,1745901046491,-152.548349,0.00034485,7]
[359300309,1745901046501,-152.119364,0.00034485,7]
[359300311,1745901046510,-151.0,0.0003449,7]
[359300313,1745901046520,-152.074473,0.0003449,7]
[359300315,1745901046529,-499.3493,0.0003449,7]
[359300317,1745901046538,-499.3493,0.0003449,7]
[359300319,1745901046547,-499.3493,0.0003449,7]
[359300321,1745901046556,-499.3493,0.0003449,7]
[359300323,1745901046572,-151.0,0.0003449,7]
[359300325,1745901046581,-151.0,0.0003449,7]
[359300327,1745901046591,-151.0,0.0003449,7]
[359300328,1745901046601,-1000.0,0.00034498,2]
[359300330,1745901046612,-1000.0,0.00034498,2]
[359300331,1745901046622,-1000.0,0.00034498,2]
[359300332,1745901046632,-1000.0,0.00034498,2]
[359300333,1745901046643,-1000.0,0.00034498,2]
[359300334,1745901046653,-1000.0,0.00034498,2]
[359300335,1745901046663,-1000.0,0.00034498,2]
[359300336,1745901046673,-1000.0,0.00034498,2]
[359300337,1745901046682,-1000.0,0.00034498,2]
[359300338,1745901046692,-1000.0,0.00034498,2]
[359300339,1745901046701,-1000.0,0.00034498,2]
[359300340,1745901046711,-1000.0,0.00034498,2]
[359300341,1745901046721,-1000.0,0.00034498,2]
[359300342,1745901046731,-1000.0,0.00034498,2]
[359300343,1745901046741,-1000.0,0.00034498,2]
[359300344,1745901046751,-1000.0,0.00034498,2]
[359300345,1745901046761,-1000.0,0.00034498,2]
[359300346,1745901046770,-1000.0,0.00034498,2]
[359300347,1745901046780,-1000.0,0.00034498,2]
[359300348,1745901046789,-1000.0,0.00034498,2]
[359300349,1745901046799,-1000.0,0.00034498,2]
[359300350,1745901046809,-1000.0,0.00034498,2]
[359300351,1745901046819,-1000.0,0.00034498,2]
[359300352,1745901046829,-1000.0,0.00034498,2]
[359300353,1745901046838,-1000.0,0.00034498,2]
[359300354,1745901046848,-1000.0,0.00034498,2]
[359300355,1745901046858,-1000.0,0.00034498,2]
[359300356,1745901046868,-1000.0,0.00034498,2]
[359300357,1745901046878,-1000.0,0.00034498,2]
[359300358,1745901046887,-1000.0,0.00034498,2]
[359300359,1745901046897,-1000.0,0.00034498,2]
[359300360,1745901046906,-714.283311,0.00034498,2]
[359300361,1745901046916,-151.0,0.000345,7]
[359300362,1745901046926,-151.0,0.000345,7]
[359300363,1745901046935,-285.0,0.00034519,5]
[359300364,1745901046946,-341.89517868,0.00034559,10]
[359300365,1745901046958,-500.0,0.00034559,10]
[359300366,1745901046968,-500.0,0.00034559,10]
[359300367,1745901046978,-500.0,0.00034559,10]
[359300368,1745901046988,-500.0,0.00034559,10]
[359300369,1745901047000,-500.0,0.00034559,10]
[359300370,1745901047011,-500.0,0.00034559,10]
[359300371,1745901047020,-300.0,0.00034569,10]
[359300372,1745901047030,-500.0,0.00034569,10]
[359300373,1745901047042,-499.3493,0.0003457,7]
[359300374,1745901047052,-499.3493,0.0003457,7]
[359300375,1745901047062,-151.0,0.0003457,7]
[359300376,1745901047071,-154.03848,0.0003457,7]
[359300377,1745901047081,-151.0,0.0003457,7]
[359300378,1745901047091,-151.0,0.0003457,7]
[359300379,1745901047101,-151.0,0.0003457,7]
[359300380,1745901047111,-151.0,0.0003457,7]
[359300381,1745901047122,-280.47,0.00034579,2]
[359300382,1745901047132,-2000.0,0.00034579,2]
[359300383,1745901047142,-2000.0,0.00034579,2]
[359300384,1745901047152,-2000.0,0.00034579,2]
[359300385,1745901047162,-2000.0,0.00034579,2]
[359300386,1745901047172,-2000.0,0.00034579,2]
[359300387,1745901047182,-2000.0,0.00034579,2]
[359300388,1745901047192,-2010.86035142,0.00034579,2]
[359300389,1745901047201,-151.0,0.0003458,7]
[359300390,1745901047211,-499.3493,0.0003458,7]
[359300391,1745901047222,-499.3493,0.0003458,7]
[359300392,1745901047232,-499.3493,0.0003458,7]
[359300393,1745901047242,-499.3493,0.0003458,7]
[359300394,1745901047252,-151.0,0.0003458,7]
[359300395,1745901047262,-151.0,0.0003459,7]
[359300396,1745901047271,-150.0,0.00034597,2]
[359300397,1745901047281,-267.46074303,0.00034633,2]
[359300398,1745901047293,-499.3493,0.00034639,7]
[359300399,1745901047303,-499.3493,0.00034639,7]
[359300400,1745901047313,-499.3493,0.00034639,7]
[359300401,1745901047323,-499.3493,0.00034639,7]
[359300402,1745901047332,-151.0,0.00034649,7]
[359300403,1745901047342,-151.0,0.0003465,7]
[359300404,1745901047352,-151.0,0.0003465,7]
[359300405,1745901047362,-150.0,0.0003466,2]
[359300406,1745901047372,-2000.0,0.0003468,15]
[359300407,1745901047382,-200.0,0.0003468,10]
[359300408,1745901047392,-4787.36457844,0.00034693,12]
[359300409,1745901047401,-150.0,0.00034703,2]
[359300410,1745901047411,-499.3493,0.0003474,7]
[359300411,1745901047421,-499.3493,0.0003474,7]
[359300412,1745901047431,-152.0,0.00034747,4]
[359300413,1745901047441,-1018.0,0.000348,2]
[359300414,1745901047451,-161.81,0.00034825,2]
[359300415,1745901047461,-153.01,0.00034827,2]
[359300416,1745901047471,-150.0,0.00034854,2]
[359300417,1745901047481,-499.3493,0.0003489,7]
[359300418,1745901047491,-499.3493,0.0003489,7]
[359300419,1745901047502,-151.0,0.0003489,7]
[359300420,1745901047512,-151.0,0.0003489,7]
[359300421,1745901047522,-151.0,0.0003489,7]
[359300422,1745901047531,-499.3493,0.00034899,7]
[359300423,1745901047541,-499.3493,0.00034899,7]
[359300424,1745901047551,-1000.0,0.000349,2]
[359300425,1745901047561,-1031.0,0.000349,3]
[359300426,1745901047574,-1000.0,0.000349,3]
[359300427,1745901047585,-151.0,0.000349,7]
[359300428,1745901047595,-151.0,0.000349,7]
[359300429,1745901047605,-153.928475,0.000349,7]
[359300430,1745901047616,-185.017382,0.0003491,7]
[359300431,1745901047626,-150.0,0.00034915,2]
[359300432,1745901047637,-7915.84880955,0.00034968,2]
[359300433,1745901047646,-522.5806387,0.00034973,5]
[359300434,1745901047657,-500.0,0.00034973,5]
[359300435,1745901047667,-500.0,0.00034973,5]
[359300436,1745901047678,-500.87603298,0.00034973,5]
[359300437,1745901047687,-500.0,0.00034973,2]
[359300438,1745901047697,-215.7028935,0.00034973,5]
[359300439,1745901047708,-500.89447363,0.00034973,5]
[359300440,1745901047717,-347.07216364,0.00034973,5]
[359300441,1745901047727,-500.68582318,0.00034973,5]
[359300442,1745901047737,-501.56791232,0.00034973,5]
[359300443,1745901047747,-330.76863988,0.00034973,5]
[359300444,1745901047756,-222.34650816,0.00034973,5]
[359300445,1745901047766,-500.86321128,0.00034973,5]
[359300446,1745901047776,-500.0,0.00034973,5]
[359300447,1745901047785,-500.0,0.00034973,5]
[359300448,1745901047795,-500.0,0.00034973,5]
[359300449,1745901047805,-500.0,0.00034973,5]
[359300450,1745901047816,-473.30434456,0.00034973,5]
[359300451,1745901047826,-223.54304339,0.00034973,5]
[359300452,1745901047838,-501.37137215,0.00034973,5]
[359300453,1745901047847,-559.16463604,0.00034973,5]
[359300454,1745901047857,-516.85934625,0.00034973,5]
[359300455,1745901047867,-500.0,0.00034989,10]
[359300456,1745901047877,-150.0,0.00034991,2]
[359300457,1745901047887,-500.0,0.00034999,10]
[359300458,1745901047897,-500.0,0.00034999,10]
[359300459,1745901047907,-500.0,0.00034999,10]
[359300460,1745901047916,-500.0,0.00034999,10]
[359300461,1745901047926,-500.0,0.00034999,10]
[359300462,1745901047936,-500.0,0.00034999,10]
[359300463,1745901047945,-500.0,0.00034999,10]
[359300464,1745901047955,-500.0,0.00034999,10]
[359300465,1745901047965,-621.29153296,0.00034999,10]
[359300466,1745901047975,-1197.13891721,0.00035,2]
[359300467,1745901047985,-206483.35310993,0.00035,2]
[359300468,1745901047995,-227.91503174,0.00035,2]
[359300469,1745901048005,-1000.0,0.00035,2]
[359300470,1745901048015,-500.29597152,0.00035,2]
[359300471,1745901048025,-2006.411856,0.00035,3]
[359300472,1745901048224,-10000.0,0.00035,2]
[359300473,1745901048235,-5089.95371906,0.00035,2]
[359300474,1745901048245,-365.76260807,0.00035014,14]
[359300475,1745901048255,-150.0,0.00035131,2]
[359300476,1745901048264,-150.0,0.00035177,2]
[359300477,1745901048274,-150.0,0.00035234,2]
[359300478,1745901048284,-150.0,0.00035238,2]
[359300479,1745901048293,-150.0,0.00035425,2]
[359300480,1745901048302,-150.0,0.0003543,2]
[359300481,1745901048312,-150.0,0.00035438,2]
[359300482,1745901048322,-150.0,0.00035464,2]
[359300483,1745901048332,-503.43068466,0.00035471,5]
[359300484,1745901048341,-1500.0,0.00035471,5]
[359300485,1745901048351,-743.1750308,0.00035471,2]
[359300486,1745901048361,-2505.04736141,0.00035516,2]
[359300487,1745901048371,-4787.36457844,0.00035555,12]
[359300488,1745901048380,-653.3,0.00035562,2]
[359300489,1745901048390,-150.0,0.00035589,2]
[359300490,1745901048399,-1007.0,0.000356,2]
[359300491,1745901048409,-150.0,0.00035609,2]
[359300492,1745901048419,-243.92002881,0.0003561,2]
[359300493,1745901048428,-1000.0,0.00035616,2]
[359300494,1745901048437,-1000.0,0.00035616,2]
[359300495,1745901048447,-1000.0,0.00035616,2]
[359300496,1745901048457,-1000.0,0.00035616,2]
[359300497,1745901048467,-1000.0,0.00035616,2]
[359300498,1745901048477,-1000.0,0.00035616,2]
[359300499,1745901048486,-1000.0,0.00035616,2]
[359300500,1745901048495,-1000.0,0.00035616,2]
[359300501,1745901048505,-1000.0,0.00035616,2]
[359300502,1745901048515,-513.17962048,0.00035616,2]
[359300503,1745901048526,-1326.71153563,0.00035616,7]
[359300504,1745901048536,-1326.71153563,0.00035616,7]
[359300505,1745901048546,-1326.71153563,0.00035616,7]
[359300506,1745901048555,-1326.71153563,0.00035616,7]
[359300507,1745901048567,-1326.71153563,0.00035616,7]
[359300508,1745901048577,-1326.71153563,0.00035616,7]
[359300509,1745901048587,-1326.71153563,0.00035616,7]
[359300510,1745901048597,-1326.71153563,0.00035616,7]
[359300511,1745901048607,-1326.71153563,0.00035616,7]
[359300512,1745901048618,-1326.71153563,0.00035616,7]
[359300513,1745901048627,-1326.71153563,0.00035616,7]
[359300514,1745901048637,-1326.71153563,0.00035616,7]
[359300515,1745901048647,-1326.71153563,0.00035616,7]
[359300516,1745901048657,-1326.71153563,0.00035616,7]
[359300517,1745901048666,-1326.71153563,0.00035616,7]
[359300518,1745901048675,-1326.71153563,0.00035616,7]
[359300519,1745901048685,-150.0,0.00035638,2]
[359300520,1745901048695,-150.0,0.0003567,2]
[359300521,1745901048704,-150.0,0.00035703,2]
[359300522,1745901048714,-150.0,0.00035726,2]
[359300523,1745901048723,-152.0,0.00035727,5]
[359300524,1745901048733,-305.187385,0.000358,12]
[359300525,1745901048743,-153.01,0.00035808,2]
[359300526,1745901048752,-150.0,0.0003586,2]
[359300527,1745901048761,-150.0,0.00035863,2]
[359300528,1745901048771,-500.0,0.00035866,10]
[359300529,1745901048780,-150.0,0.00035877,2]
[359300530,1745901048790,-150.0,0.0003589,2]
[359300531,1745901048799,-569.81795047,0.0003589,2]
[359300532,1745901048809,-150.0,0.0003589,2]
[359300533,1745901048818,-150.0,0.0003589,2]
[359300534,1745901048828,-150.0,0.0003589,2]
[359300535,1745901048838,-503.44874101,0.0003589,2]
[359300536,1745901048847,-650.64108233,0.0003589,2]
[359300537,1745901048856,-906.50663448,0.0003589,2]
[359300538,1745901048866,-150.0,0.0003589,2]
[359300539,1745901048875,-977.65687831,0.0003589,2]
[359300540,1745901048885,-500.0,0.00035894,10]
[359300541,1745901048895,-500.0,0.00035899,10]
[359300542,1745901048904,-531.22658341,0.00035909,10]
[359300543,1745901048913,-500.0,0.00035919,10]
[359300544,1745901048923,-500.0,0.00035929,10]
[359300545,1745901048933,-500.0,0.00035929,10]
[359300546,1745901048943,-287.59056672,0.00035929,10]
[359300547,1745901048952,-500.0,0.00035929,10]
[359300548,1745901048962,-500.0,0.00035929,10]
[359300549,1745901048971,-500.0,0.00035929,10]
[359300550,1745901048980,-500.0,0.00035929,10]
[359300551,1745901048990,-271466.82802185,0.0003593,7]
[359300552,1745901048999,-150.0,0.00035941,2]
[359300553,1745901049008,-280.47,0.00035949,2]
[359300554,1745901049019,-150.0,0.00035952,2]
[359300555,1745901049028,-556.47788212,0.00035973,5]
[359300556,1745901049038,-500.0,0.00035973,5]
[359300557,1745901049047,-500.0,0.00035989,10]
[359300558,1745901049058,-500.0,0.00035999,10]
[359300559,1745901049067,-500.0,0.00035999,10]
[359300560,1745901049076,-500.0,0.00035999,10]
[359300561,1745901049086,-500.0,0.00035999,10]
[359300562,1745901049095,-500.0,0.00035999,10]
[359300563,1745901049105,-500.0,0.00035999,10]
[359300564,1745901049116,-500.0,0.00035999,10]
[359300565,1745901049125,-500.0,0.00035999,10]
[359300566,1745901049134,-646.41101251,0.00036,2]
[359300567,1745901049144,-160347.19782174,0.00036,2]
[359300568,1745901049153,-2677.87338584,0.00036,2]
[359300569,1745901049163,-500.0,0.00036,5]
[359300570,1745901049173,-150.0,0.00036,2]
[359300571,1745901049183,-2000.0,0.00036,4]
[359300572,1745901049192,-277.35679052,0.00036002,2]
[359300573,1745901049202,-165.17657835,0.00036104,8]
[359300574,1745901049211,-150.0,0.00036136,2]
[359300575,1745901049220,-150.0,0.00036152,2]
[359300576,1745901049230,-6128.20891224,0.00036172,2]
[359300577,1745901049239,-150.0,0.00036182,2]
[359300578,1745901049249,-150.0,0.00036273,2]
[359300579,1745901049259,-700.0,0.000363,2]
[359300580,1745901049268,-599.86423584,0.00036311,15]
[359300581,1745901049278,-150.0,0.00036325,2]
[359300582,1745901049288,-1000.0,0.00036377,2]
[359300583,1745901049298,-150.0,0.0003641,2]
[359300584,1745901049308,-4787.36457844,0.00036417,13]
[359300585,1745901049317,-150.0,0.00036457,2]
[359300586,1745901049327,-150.0,0.00036529,2]
[359300587,1745901049336,-150.0,0.00036547,2]
[359300588,1745901049346,-150.0,0.00036555,2]
[359300589,1745901049355,-150.0,0.00036684,2]
[359300590,1745901049365,-152.0,0.00036707,6]
[359300591,1745901049374,-153.01,0.00036789,2]
[359300592,1745901049383,-150.0,0.00036821,2]
[359300593,1745901049392,-150.0,0.00036851,2]
[359300594,1745901049401,-150.0,0.00036958,2]
[359300595,1745901049411,-150.0,0.00036961,2]
[359300596,1745901049421,-1000.0,0.00036978,2]
[359300597,1745901049430,-175.0,0.00036986,2]
[359300598,1745901049440,-969.91,0.00037,2]
[359300599,1745901049450,-1391.32951598,0.00037,10]
[359300600,1745901049460,-150.0,0.00037095,2]
[359300601,1745901049469,-150.0,0.00037104,2]
[359300602,1745901049479,-150.0,0.00037128,2]
[359300603,1745901049488,-150.0,0.00037169,2]
[359300604,1745901049499,-150.0,0.00037221,2]
[359300605,1745901049508,-150.0,0.00037232,2]
[359300606,1745901049517,-23.75616609,0.00037254,2]
[359300607,1745901049927,470.0,0.00038356,30]
[359300608,1745901050024,470.0,0.00038356,30]
[359300609,1745901050273,470.0,0.00038356,30]
[359300610,1745901050503,470.0,0.00038356,30]
[359300611,1745901050646,470.0,0.00038356,30]
[359300612,1745901050674,-226.48213372,0.00035516,7]
[359300613,1745901050684,-126.24383391,0.00037254,2]
[359300614,1745901050694,-176.62,0.00037266,2]
[359300615,1745901050704,-4787.36457844,0.00037279,13]
[359300616,1745901050715,-150.0,0.00037283,2]
[359300617,1745901050727,-1404.83,0.000373,2]
[359300618,1745901050735,-2284.26,0.000373,2]
[359300619,1745901050747,-1370.56,0.000373,2]
[359300620,1745901050758,-2033.0,0.000373,2]
[359300621,1745901050767,-2899.63,0.000373,2]
[359300622,1745901050776,-2975.67,0.000373,2]
[359300623,1745901050787,-3452.49,0.000373,2]
[359300624,1745901050797,-1380.99,0.000373,2]
[359300625,1745901050806,-280.47,0.00037319,2]
[359300626,1745901050815,-791.22891477,0.00037332,7]
[359300627,1745901050825,-150.0,0.00037362,2]
[359300628,1745901050835,-150.0,0.00037369,2]
[359300629,1745901050845,-287.61899177,0.00037371,2]
[359300630,1745901050855,-244.0,0.0003739,2]
[359300631,1745901050866,-210.0,0.0003739,2]
[359300632,1745901050876,-2284.26,0.000374,2]
[359300633,1745901050887,-2033.0,0.000374,2]
[359300634,1745901050896,-2899.63,0.000374,2]
[359300635,1745901050905,-2975.67,0.000374,2]
[359300636,1745901050915,-3452.49,0.000374,2]
[359300637,1745901050924,-150.0,0.00037404,2]
[359300638,1745901050934,-150.0,0.00037405,2]
[359300639,1745901050944,-153.0,0.00037412,2]